[Event "POL-chT 2 Liga 2019"]
[Site "Poronin"]
[Date "2019.09.11"]
[Round "5.11"]
[White "Pulik, Krzysztof"]
[Black "Gmaj, Krzysztof"]
[Result "1-0"]
[ECO "C03"]
[WhiteElo "2131"]
[BlackElo "2120"]
[Annotator "NA"]
[PlyCount "139"]
[EventDate "2019.09.07"]
[EventType "team-tourn"]
[EventCountry "POL"]
[SourceTitle "playchess.com"]
[Source "ChessBase"]
[SourceQuality "1"]
[TimeControl "40/5400+30:1800+30"]

1. e4 {[%emt 0:00:00]} e6 {[%emt 0:00:00]} 2. d4 {[%emt 0:00:00]} d5 {[%emt 0:00:00]} 3. Nd2 {[%emt 0:00:00]} h6 {[%emt 0:00:00]} 4. Ngf3 {[%emt 0:00:23]} Nf6 {[%emt 0:00:00]} 5. Bd3 {[%emt 0:01:25]} c5 {[%emt 0:00:12]} 6. dxc5 {[%emt 0:00:23]} Bxc5 {[%emt 0:00:49]} 7. Qe2 {[%emt 0:00:17]} Nc6 {[%emt 0:01:59]} 8. O-O {[%emt 0:01:44]} O-O {[%emt 0:08:56]} 9. c3 {[%emt 0:02:26]} a5 {[%emt 0:03:40]} 10. h3 {[%emt 0:04:05]} Re8 {[%emt 0:02:51]} 11. Rd1 {[%emt 0:05:09]} Qe7 {[%emt 0:05:50]} 12. exd5 {[%emt 0:09:15]} exd5 {[%emt 0:01:46]} 13. Qxe7 {[%emt 0:00:08]} Rxe7 {[%emt 0:00:29]} 14. Nb3 {[%emt 0:00:41]} Bb6 {[%emt 0:01:00]} 15. Nbd4 {[%emt 0:01:14]} Bd7 {[%emt 0:07:07]} 16. Be3 {[%emt 0:01:40]} Ba7 {[%emt 0:04:22]} 17. Re1 {[%emt 0:05:53]} Nxd4 {[%emt 0:10:36]} 18. Nxd4 {[%emt 0:05:28]} Ree8 19. Rad1 {[%emt 0:01:24]} Ne4 {[%emt 0:08:17]} 20. Nb5 {[%emt 0:02:43]} Bxe3 {[%emt 0:05:01]} 21. Rxe3 {[%emt 0:00:16]} Nf6 {[%emt 0:03:54]} 22. Rxe8+ {[%emt 0:11:09]} Rxe8 {[%emt 0:00:56]} 23. Nd4 {[%emt 0:01:16]} Kf8 {[%emt 0:00:24]} 24. Kf1 {[%emt 0:00:34]} Rb8 {[%emt 0:01:41]} 25. Bb5 {[%emt 0:02:10]} Bxb5+ {[%emt 0:05:12]} 26. Nxb5 {[%emt 0:00:06]} Ke7 {[%emt 0:00:27]} 27. Rd3 {[%emt 0:04:40]} Rc8 {[%emt 0:01:07]} 28. Ke2 {[%emt 0:01:15]} Rc5 {[%emt 0:00:41]} 29. Nd4 {[%emt 0:00:17]} g6 {[%emt 0:01:16]} 30. g4 {[%emt 0:05:17]} Rc8 {[%emt 0:01:20]} 31. f3 {[%emt 0:00:25]} Kd6 {[%emt 0:01:25]} 32. Re3 {[%emt 0:02:09]} Rb8 {[%emt 0:10:26]} 33. a4 {[%emt 0:01:22]} Re8 {[%emt 0:03:34]} 34. Rxe8 {[%emt 0:07:56]} Nxe8 {[%emt 0:00:08]} 35. b4 {[%emt 0:00:17]} axb4 {[%emt 0:01:19]} 36. cxb4 {[%emt 0:00:06]} Nc7 {[%emt 0:02:19]} 37. Ke3 {[%emt 0:01:09]} Ke5 {[%emt 0:03:26]} 38. f4+ {[%emt 0:02:17]} Kd6 {[%emt 0:00:34]} 39. Kd3 {[%emt 0:01:08]} Na6 {[%emt 0:03:16]} 40. Nb5+ {[%emt 0:00:00]} Kc6 {[%emt 0:00:00]} 41. Kc3 {[%emt 0:03:15]} f6 {[%emt 0:14:07]} 42. h4 {[%emt 0:03:48]} Kd7 {[%emt 0:06:35]} 43. h5 {[%emt 0:03:20]} gxh5 {[%emt 0:01:21]} 44. gxh5 {[%emt 0:00:07]} b6 {[%emt 0:06:03]} 45. Nd4 {[%emt 0:02:23]} Nc7 {[%emt 0:00:50]} 46. a5 {[%emt 0:00:21]} bxa5 {[%emt 0:00:05]} 47. bxa5 {[%emt 0:00:06]} Na6 {[%emt 0:03:32]} 48. Nf5 {[%emt 0:01:10]} Nc5 {[%emt 0:01:17]} 49. Nxh6 {[%emt 0:00:13]} Ne4+ {[%emt 0:01:01]} 50. Kd4 {[%emt 0:00:47]} Ng3 {[%emt 0:00:07]} 51. Kxd5 {[%emt 0:02:16]} Nxh5 {[%emt 0:00:19]} 52. f5 {[%emt 0:00:12]} Kc7 {[%emt 0:00:17]} 53. Kc5 {[%emt 0:00:15]} Kb7 {[%emt 0:00:16]} 54. Kb5 {[%emt 0:00:32]} Ng7 {[%emt 0:00:22]} 55. a6+ {[%emt 0:00:18]} Ka7 {[%emt 0:00:03]} 56. Ka5 {[%emt 0:00:10]} Ne8 {[%emt 0:00:56]} 57. Ng8 {[%emt 0:00:50]} Nc7 {[%emt 0:03:03]} 58. Nxf6 {[%emt 0:00:28]} Nxa6 {[%emt 0:00:03]} 59. Nd5 {[%emt 0:00:51]} Nc5 {[%emt 0:00:49]} 60. f6 {[%emt 0:04:12]} Nd7 {[%emt 0:01:31]} 61. f7 {[%emt 0:00:12]} Kb7 {[%emt 0:00:13]} 62. Kb5 {[%emt 0:00:19]} Nf8 {[%emt 0:00:23]} 63. Kc5 {[%emt 0:00:38]} Kc8 {[%emt 0:00:55]} 64. Kd6 {[%emt 0:00:10]} Kd8 {[%emt 0:00:42]} 65. Nf4 {[%emt 0:01:01]} Nh7 {[%emt 0:00:30]} 66. Ng6 {[%emt 0:00:55]} Kc8 {[%emt 0:00:06]} 67. Ke7 {[%emt 0:00:16]} Kc7 {[%emt 0:00:15]} 68. Ne5 {[%emt 0:00:13]} Kc8 {[%emt 0:01:16]} 69. Ng4 {[%emt 0:00:15]} Kc7 {[%emt 0:00:13]} 70. Nf6 {[%emt 0:00:07]} 1-0

[Event "POL-chT 2 Liga 2019"]
[Site "Poronin"]
[Date "2019.09.11"]
[Round "5.12"]
[White "Kubicka, Anna"]
[Black "Lukasiewicz, Anna"]
[Result "1/2-1/2"]
[ECO "B36"]
[WhiteElo "2225"]
[BlackElo "2075"]
[Annotator "NA"]
[PlyCount "117"]
[EventDate "2019.09.07"]
[EventType "team-tourn"]
[EventCountry "POL"]
[SourceTitle "playchess.com"]
[Source "ChessBase"]
[SourceQuality "1"]
[TimeControl "40/5400+30:1800+30"]

1. e4 {[%emt 0:00:00]} c5 {[%emt 0:00:00]} 2. Nf3 {[%emt 0:00:00]} Nc6 {[%emt 0:00:00]} 3. d4 {[%emt 0:00:04]} cxd4 {[%emt 0:00:13]} 4. Nxd4 {[%emt 0:00:05]} g6 {[%emt 0:00:27]} 5. c4 {[%emt 0:00:17]} Nf6 {[%emt 0:00:26]} 6. Nc3 {[%emt 0:00:12]} Nxd4 {[%emt 0:00:47]} 7. Qxd4 {[%emt 0:00:18]} d6 {[%emt 0:00:22]} 8. Be2 {[%emt 0:00:45]} Bg7 {[%emt 0:00:37]} 9. Be3 {[%emt 0:00:14]} O-O {[%emt 0:00:32]} 10. Qd2 {[%emt 0:00:13]} Be6 {[%emt 0:01:39]} 11. O-O {[%emt 0:01:39]} Qa5 {[%emt 0:07:20]} 12. Rac1 {[%emt 0:00:12]} Rfc8 {[%emt 0:00:50]} 13. b3 {[%emt 0:00:20]} a6 {[%emt 0:03:23]} 14. f3 {[%emt 0:00:46]} b5 {[%emt 0:02:54]} 15. Nd5 {[%emt 0:42:06]} Qxd2 {[%emt 0:01:21]} 16. Bxd2 {[%emt 0:00:04]} Nxd5 {[%emt 0:01:12]} 17. cxd5 {[%emt 0:09:13]} Bd4+ {[%emt 0:00:46]} 18. Kh1 {[%emt 0:01:34]} Bd7 {[%emt 0:00:11]} 19. Rxc8+ {[%emt 0:02:06]} Rxc8 {[%emt 0:00:09]} 20. Rc1 {[%emt 0:00:16]} Rxc1+ {[%emt 0:04:00]} 21. Bxc1 {[%emt 0:00:01]} h5 {[%emt 0:03:57]} 22. g3 {[%emt 0:00:30]} Kg7 {[%emt 0:06:47]} 23. Kg2 {[%emt 0:00:14]} a5 {[%emt 0:24:57]} 24. Bg5 {[%emt 0:05:35]} f6 {[%emt 0:00:42]} 25. Bd2 {[%emt 0:00:22]} b4 {[%emt 0:00:30]} 26. Bc4 {[%emt 0:03:12]} f5 {[%emt 0:02:28]} 27. Bg5 {[%emt 0:04:59]} Kf7 {[%emt 0:00:35]} 28. h3 {[%emt 0:04:15]} fxe4 {[%emt 0:01:49]} 29. fxe4 {[%emt 0:00:09]} a4 {[%emt 0:08:14]} 30. Be2 {[%emt 0:04:27]} axb3 {[%emt 0:04:07]} 31. axb3 {[%emt 0:00:09]} e5 {[%emt 0:05:18]} 32. Bf1 {[%emt 0:10:08]} Bc8 {[%emt 0:03:54]} 33. Kf3 {[%emt 0:04:21]} Bd7 {[%emt 0:01:39]} 34. Bd2 {[%emt 0:01:05]} Bc5 {[%emt 0:01:06]} 35. g4 {[%emt 0:05:08]} hxg4+ {[%emt 0:09:00]} 36. hxg4 {[%emt 0:00:03]} Kf6 {[%emt 0:00:30]} 37. g5+ {[%emt 0:02:50]} Ke7 {[%emt 0:00:09]} 38. Ba6 {[%emt 0:00:22]} Kd8 {[%emt 0:02:06]} 39. Be3 {[%emt 0:00:37]} Bxe3 {[%emt 0:01:33]} 40. Kxe3 {[%emt 0:00:00]} Kc7 {[%emt 0:00:00]} 41. Be2 {[%emt 0:01:20]} Kb6 {[%emt 0:03:11]} 42. Bd1 {[%emt 0:01:17]} Kc5 {[%emt 0:00:53]} 43. Bf3 {[%emt 0:01:39]} Kb6 {[%emt 0:01:16]} 44. Be2 {[%emt 0:02:47]} Kc5 {[%emt 0:01:38]} 45. Bd1 {[%emt 0:02:02]} Kb6 {[%emt 0:01:14]} 46. Kd2 {[%emt 0:01:07]} Kc5 {[%emt 0:00:32]} 47. Kd3 {[%emt 0:00:19]} Bb5+ {[%emt 0:00:26]} 48. Ke3 {[%emt 0:00:05]} Bd7 {[%emt 0:00:09]} 49. Bf3 {[%emt 0:05:18]} Kb6 {[%emt 0:00:31]} 50. Be2 {[%emt 0:00:17]} Kc5 {[%emt 0:00:25]} 51. Bd1 {[%emt 0:06:30]} Kb6 {[%emt 0:00:39]} 52. Kd3 {[%emt 0:00:21]} Bb5+ {[%emt 0:00:48]} 53. Kd2 {[%emt 0:01:12]} Bd7 {[%emt 0:00:36]} 54. Ke3 {[%emt 0:00:10]} Kc5 {[%emt 0:00:13]} 55. Be2 {[%emt 0:01:16]} Kb6 {[%emt 0:00:14]} 56. Bf3 {[%emt 0:00:33]} Kc5 {[%emt 0:00:07]} 57. Kd3 {[%emt 0:01:17]} Bb5+ {[%emt 0:00:05]} 58. Ke3 {[%emt 0:00:04]} Bd7 {[%emt 0:00:04]} 59. Be2 {[%emt 0:00:26]} 1/2-1/2

[Event "POL-chT 2 Liga 2019"]
[Site "Poronin"]
[Date "2019.09.11"]
[Round "5.13"]
[White "Stachowiak, Kamil"]
[Black "Polok, Kacper"]
[Result "1-0"]
[ECO "E11"]
[WhiteElo "2444"]
[BlackElo "2307"]
[Annotator "NA"]
[PlyCount "75"]
[EventDate "2019.09.07"]
[EventType "team-tourn"]
[EventCountry "POL"]
[SourceTitle "playchess.com"]
[Source "ChessBase"]
[SourceQuality "1"]
[TimeControl "40/5400+30:1800+30"]

1. d4 {[%emt 0:00:00]} Nf6 {[%emt 0:00:11]} 2. Nf3 {[%emt 0:00:00]} e6 {[%emt 0:00:16]} 3. c4 {[%emt 0:00:07]} Bb4+ {[%emt 0:01:03]} 4. Nbd2 {[%emt 0:00:34]} b6 {[%emt 0:03:08]} 5. g3 {[%emt 0:00:26]} Bb7 {[%emt 0:00:40]} 6. Bg2 {[%emt 0:00:18]} O-O {[%emt 0:00:43]} 7. O-O {[%emt 0:00:09]} Bxd2 {[%emt 0:00:30]} 8. Bxd2 {[%emt 0:00:38]} d6 {[%emt 0:00:33]} 9. b4 {[%emt 0:07:16]} Nbd7 {[%emt 0:10:10]} 10. Bc3 {[%emt 0:04:41]} Qe7 {[%emt 0:02:55]} 11. Qb3 {[%emt 0:03:37]} Be4 {[%emt 0:09:55]} 12. Rfe1 {[%emt 0:06:20]} c6 {[%emt 0:02:37]} 13. Bf1 {[%emt 0:09:04]} Bxf3 {[%emt 0:10:31]} 14. exf3 {[%emt 0:01:25]} d5 {[%emt 0:00:07]} 15. b5 {[%emt 0:03:04]} Qd6 {[%emt 0:06:54]} 16. Bb4 {[%emt 0:20:29]} c5 {[%emt 0:00:26]} 17. Ba3 {[%emt 0:00:09]} Rfc8 {[%emt 0:11:27]} 18. Rad1 {[%emt 0:14:31]} Rc7 {[%emt 0:02:26]} 19. f4 {[%emt 0:02:45]} Rd8 {[%emt 0:11:26]} 20. f5 {[%emt 0:03:28]} Nf8 {[%emt 0:05:57]} 21. dxc5 {[%emt 0:02:22]} bxc5 {[%emt 0:00:22]} 22. fxe6 {[%emt 0:07:34]} fxe6 {[%emt 0:00:40]} 23. cxd5 {[%emt 0:00:12]} exd5 {[%emt 0:00:11]} 24. Bg2 {[%emt 0:00:47]} Rcd7 {[%emt 0:03:42]} 25. Bb2 {[%emt 0:03:16]} c4 {[%emt 0:01:13]} 26. Qe3 {[%emt 0:07:57]} Re8 {[%emt 0:02:49]} 27. Qd2 {[%emt 0:01:23]} Rxe1+ {[%emt 0:01:14]} 28. Qxe1 {[%emt 0:00:02]} Re7 {[%emt 0:03:20]} 29. Qd2 {[%emt 0:00:38]} N8d7 {[%emt 0:05:00]} 30. a4 {[%emt 0:00:34]} Nc5 {[%emt 0:01:48]} 31. Bxf6 {[%emt 0:00:14]} gxf6 {[%emt 0:00:12]} 32. Bxd5+ {[%emt 0:00:27]} Kg7 {[%emt 0:00:06]} 33. Qd4 {[%emt 0:01:17]} Rd7 {[%emt 0:01:57]} 34. Qxc4 {[%emt 0:00:10]} Kf8 {[%emt 0:00:51]} 35. Bf3 {[%emt 0:00:19]} Qe7 {[%emt 0:00:27]} 36. Rxd7 {[%emt 0:00:48]} Nxd7 {[%emt 0:00:07]} 37. Qc8+ {[%emt 0:00:16]} Kg7 {[%emt 0:00:23]} 38. Qb7 {[%emt 0:00:38]} 1-0

[Event "POL-chT 2 Liga 2019"]
[Site "Poronin"]
[Date "2019.09.11"]
[Round "5.14"]
[White "Wieczorek, Zbigniew"]
[Black "Piotrowski, Przemyslaw"]
[Result "1/2-1/2"]
[ECO "A04"]
[WhiteElo "2193"]
[BlackElo "2293"]
[Annotator "NA"]
[PlyCount "118"]
[EventDate "2019.09.07"]
[EventType "team-tourn"]
[EventCountry "POL"]
[SourceTitle "playchess.com"]
[Source "ChessBase"]
[SourceQuality "1"]
[TimeControl "40/5400+30:1800+30"]

1. Nf3 {[%emt 0:00:00]} g6 {[%emt 0:00:05]} 2. g3 {[%emt 0:01:55]} Bg7 {[%emt 0:00:43]} 3. c4 {[%emt 0:00:41]} e5 {[%emt 0:01:44]} 4. Nc3 {[%emt 0:00:08]} Ne7 {[%emt 0:02:06]} 5. Bg2 {[%emt 0:02:25]} c5 {[%emt 0:04:23]} 6. O-O {[%emt 0:03:33]} Nbc6 {[%emt 0:00:22]} 7. d3 {[%emt 0:03:46]} O-O {[%emt 0:08:03]} 8. a3 {[%emt 0:00:46]} h6 {[%emt 0:02:22]} 9. Rb1 {[%emt 0:00:22]} f5 {[%emt 0:03:38]} 10. Nd5 {[%emt 0:03:19]} a5 {[%emt 0:29:53]} 11. Ne1 {[%emt 0:26:49]} Nxd5 {[%emt 0:14:39]} 12. cxd5 {[%emt 0:03:39]} Nd4 {[%emt 0:03:05]} 13. a4 {[%emt 0:10:46]} f4 {[%emt 0:04:13]} 14. e3 {[%emt 0:04:02]} fxe3 {[%emt 0:01:28]} 15. fxe3 {[%emt 0:01:13]} Rxf1+ {[%emt 0:00:07]} 16. Bxf1 {[%emt 0:04:16]} Nf5 {[%emt 0:00:11]} 17. e4 {[%emt 0:02:02]} Nd4 {[%emt 0:00:44]} 18. Nf3 {[%emt 0:02:01]} Nxf3+ {[%emt 0:00:30]} 19. Qxf3 {[%emt 0:00:04]} d6 {[%emt 0:00:17]} 20. Bd2 {[%emt 0:01:52]} Bd7 {[%emt 0:00:48]} 21. Qd1 {[%emt 0:02:10]} Qb6 {[%emt 0:01:34]} 22. Qc1 {[%emt 0:03:13]} Kh7 {[%emt 0:04:08]} 23. b3 {[%emt 0:00:43]} Rf8 {[%emt 0:01:35]} 24. Qe1 {[%emt 0:01:22]} Ra8 {[%emt 0:01:24]} 25. h4 {[%emt 0:02:14]} Qd8 {[%emt 0:02:35]} 26. Kh2 {[%emt 0:01:54]} g5 {[%emt 0:06:07]} 27. hxg5 {[%emt 0:02:24]} hxg5 {[%emt 0:00:04]} 28. Qe3 {[%emt 0:00:23]} Kg6 {[%emt 0:00:30]} 29. Kg2 {[%emt 0:01:31]} Qe7 {[%emt 0:02:30]} 30. Be2 {[%emt 0:00:24]} b6 {[%emt 0:00:40]} 31. Rh1 {[%emt 0:00:42]} Rh8 {[%emt 0:00:15]} 32. Rxh8 {[%emt 0:00:43]} Bxh8 {[%emt 0:00:02]} 33. Bf3 {[%emt 0:04:58]} Bf6 {[%emt 0:03:22]} 34. Qe2 {[%emt 0:00:10]} Qf8 {[%emt 0:01:15]} 35. Bh5+ {[%emt 0:01:20]} Kg7 36. Bg4 {[%emt 0:00:11]} Qc8 {[%emt 0:00:20]} 37. Bxd7 {[%emt 0:00:49]} Qxd7 {[%emt 0:00:03]} 38. Qh5 {[%emt 0:00:19]} Qe7 {[%emt 0:00:58]} 39. Qg4 {[%emt 0:00:53]} Kh6 {[%emt 0:00:48]} 40. Qf5 {[%emt 0:00:00]} Kh5 {[%emt 0:00:00]} 41. Kf3 {[%emt 0:02:34]} Qg7 {[%emt 0:10:02]} 42. Qh3+ {[%emt 0:09:29]} Kg6 {[%emt 0:00:04]} 43. Qe6 {[%emt 0:00:10]} Qe7 {[%emt 0:03:38]} 44. Qf5+ {[%emt 0:01:34]} Kh5 {[%emt 0:00:11]} 45. Ke2 {[%emt 0:02:10]} Bg7 {[%emt 0:05:53]} 46. g4+ {[%emt 0:01:07]} Kh6 {[%emt 0:00:09]} 47. Kd1 {[%emt 0:00:10]} Bf6 {[%emt 0:12:40]} 48. Kc2 {[%emt 0:00:29]} Kg7 {[%emt 0:00:10]} 49. Kc3 {[%emt 0:00:17]} Qd8 {[%emt 0:00:54]} 50. Kc4 {[%emt 0:00:21]} Be7 {[%emt 0:01:30]} 51. Qe6 {[%emt 0:02:01]} Kf8 {[%emt 0:00:24]} 52. Qg6 {[%emt 0:02:16]} Bf6 {[%emt 0:01:05]} 53. Qf5 {[%emt 0:02:50]} Ke8 {[%emt 0:01:01]} 54. Qe6+ {[%emt 0:01:54]} Kf8 {[%emt 0:00:06]} 55. Kb5 {[%emt 0:00:41]} Be7 {[%emt 0:00:05]} 56. Qh6+ {[%emt 0:01:11]} Ke8 {[%emt 0:01:37]} 57. Qe6 {[%emt 0:03:48]} Kf8 {[%emt 0:00:22]} 58. Qh6+ {[%emt 0:03:03]} Ke8 {[%emt 0:00:15]} 59. Kc4 {[%emt 0:01:32]} Kd7 {[%emt 0:00:34]} 1/2-1/2

[Event "POL-chT 2 Liga 2019"]
[Site "Poronin"]
[Date "2019.09.11"]
[Round "5.17"]
[White "Kolasinski, Krzysztof"]
[Black "Sochacki, Zenon"]
[Result "1-0"]
[ECO "A52"]
[WhiteElo "2104"]
[BlackElo "1887"]
[Annotator "NA"]
[PlyCount "51"]
[EventDate "2019.09.07"]
[EventType "team-tourn"]
[EventCountry "POL"]
[SourceTitle "playchess.com"]
[Source "ChessBase"]
[SourceQuality "1"]
[TimeControl "40/5400+30:1800+30"]

1. d4 {[%emt 0:00:00]} Nf6 {[%emt 0:00:00]} 2. c4 {[%emt 0:00:12]} e5 {[%emt 0:00:00]} 3. dxe5 {[%emt 0:00:05]} Ng4 {[%emt 0:00:02]} 4. Bf4 {[%emt 0:00:13]} g5 {[%emt 0:00:14]} 5. Bg3 {[%emt 0:00:26]} Bg7 {[%emt 0:00:14]} 6. Nf3 {[%emt 0:00:53]} Nc6 {[%emt 0:00:37]} 7. Nc3 {[%emt 0:00:48]} Ngxe5 {[%emt 0:00:32]} 8. e3 {[%emt 0:01:05]} d6 {[%emt 0:01:10]} 9. Be2 {[%emt 0:00:45]} Be6 {[%emt 0:01:00]} 10. Qa4 {[%emt 0:03:01]} Bd7 {[%emt 0:26:33]} 11. Nxe5 {[%emt 0:02:48]} Nxe5 {[%emt 0:02:11]} 12. Qc2 {[%emt 0:00:24]} Be6 {[%emt 0:02:49]} 13. O-O {[%emt 0:06:54]} h5 {[%emt 0:03:38]} 14. Rad1 {[%emt 0:01:57]} g4 {[%emt 0:11:50]} 15. c5 {[%emt 0:06:30]} Qe7 {[%emt 0:10:08]} 16. cxd6 {[%emt 0:00:35]} cxd6 {[%emt 0:00:10]} 17. Ne4 {[%emt 0:01:08]} d5 {[%emt 0:02:48]} 18. Nc3 {[%emt 0:06:13]} Qc5 {[%emt 0:08:03]} 19. Qa4+ {[%emt 0:06:24]} Kf8 {[%emt 0:03:23]} 20. Nb5 {[%emt 0:08:10]} Kg8 {[%emt 0:10:22]} 21. Rc1 {[%emt 0:03:59]} Qb6 {[%emt 0:00:43]} 22. Nc7 {[%emt 0:00:30]} Rd8 {[%emt 0:04:18]} 23. Bh4 {[%emt 0:01:59]} Rb8 {[%emt 0:05:53]} 24. b3 {[%emt 0:04:51]} Bd7 {[%emt 0:02:39]} 25. Nxd5 {[%emt 0:04:31]} Qd6 {[%emt 0:01:42]} 26. Qxa7 {[%emt 0:02:20]} 1-0

[Event "POL-chT 2 Liga 2019"]
[Site "Poronin"]
[Date "2019.09.11"]
[Round "5.18"]
[White "Suchanek, Paulina"]
[Black "Dmochowska, Agnieszka"]
[Result "0-1"]
[ECO "E30"]
[WhiteElo "1574"]
[BlackElo "2110"]
[Annotator "NA"]
[PlyCount "66"]
[EventDate "2019.09.07"]
[EventType "team-tourn"]
[EventCountry "POL"]
[SourceTitle "playchess.com"]
[Source "ChessBase"]
[SourceQuality "1"]
[TimeControl "40/5400+30:1800+30"]

1. d4 {[%emt 0:00:00]} Nf6 {[%emt 0:00:00]} 2. c4 {[%emt 0:00:04]} e6 {[%emt 0:00:00]} 3. Nc3 {[%emt 0:00:25]} Bb4 {[%emt 0:00:00]} 4. Bg5 {[%emt 0:01:03]} c5 {[%emt 0:04:01]} 5. Nf3 {[%emt 0:01:56]} Nc6 {[%emt 0:08:30]} 6. e3 {[%emt 0:02:36]} Qa5 {[%emt 0:08:26]} 7. Bxf6 {[%emt 0:07:57]} Bxc3+ {[%emt 0:01:53]} 8. bxc3 {[%emt 0:00:21]} Qxc3+ {[%emt 0:00:08]} 9. Nd2 {[%emt 0:00:08]} gxf6 {[%emt 0:00:16]} 10. dxc5 {[%emt 0:04:01]} Ne5 {[%emt 0:04:17]} 11. Be2 {[%emt 0:04:47]} Nd3+ {[%emt 0:05:53]} 12. Bxd3 {[%emt 0:00:39]} Qxd3 {[%emt 0:00:12]} 13. Qg4 {[%emt 0:14:01]} Qg6 {[%emt 0:10:36]} 14. Qf3 {[%emt 0:03:19]} Ke7 {[%emt 0:13:15]} 15. O-O {[%emt 0:04:56]} Rd8 {[%emt 0:03:05]} 16. Ne4 {[%emt 0:02:43]} b6 {[%emt 0:03:11]} 17. Nd6 {[%emt 0:00:33]} Ba6 {[%emt 0:02:23]} 18. Rab1 {[%emt 0:07:48]} bxc5 {[%emt 0:01:49]} 19. Nb5 {[%emt 0:05:40]} Rab8 {[%emt 0:03:15]} 20. Qd1 {[%emt 0:08:33]} Rb6 {[%emt 0:08:31]} 21. a4 {[%emt 0:04:13]} Rg8 {[%emt 0:08:47]} 22. g3 {[%emt 0:00:59]} Qe4 {[%emt 0:01:23]} 23. a5 {[%emt 0:01:39]} Bb7 {[%emt 0:00:29]} 24. f3 {[%emt 0:00:08]} Qxe3+ {[%emt 0:00:07]} 25. Kg2 {[%emt 0:00:28]} Ra6 {[%emt 0:02:15]} 26. Re1 {[%emt 0:02:57]} Qf4 {[%emt 0:01:20]} 27. Kf2 {[%emt 0:01:20]} Qxc4 {[%emt 0:01:25]} 28. Nc7 {[%emt 0:03:16]} Rd6 {[%emt 0:00:31]} 29. Rxb7 {[%emt 0:01:47]} Rxd1 {[%emt 0:00:08]} 30. Rxd1 {[%emt 0:00:05]} Qc2+ {[%emt 0:00:05]} 31. Ke1 {[%emt 0:01:06]} Rg5 {[%emt 0:02:02]} 32. Rdb1 {[%emt 0:03:15]} Re5+ {[%emt 0:00:21]} 33. Kf1 {[%emt 0:00:06]} Re2 {[%emt 0:00:51]} 0-1

[Event "POL-chT 2 Liga 2019"]
[Site "Poronin"]
[Date "2019.09.11"]
[Round "5.19"]
[White "Wandzik, Wojciech"]
[Black "Maciejczak, Jakub"]
[Result "1-0"]
[ECO "B19"]
[WhiteElo "2409"]
[BlackElo "2383"]
[Annotator "NA"]
[PlyCount "75"]
[EventDate "2019.09.07"]
[EventType "team-tourn"]
[EventCountry "POL"]
[SourceTitle "playchess.com"]
[Source "ChessBase"]
[SourceQuality "1"]
[TimeControl "40/5400+30:1800+30"]

1. e4 {[%emt 0:00:00]} c6 {[%emt 0:00:00]} 2. d4 {[%emt 0:00:00]} d5 {[%emt 0:00:00]} 3. Nc3 {[%emt 0:00:08]} dxe4 {[%emt 0:00:00]} 4. Nxe4 {[%emt 0:00:04]} Bf5 {[%emt 0:03:41]} 5. Ng3 {[%emt 0:00:30]} Bg6 {[%emt 0:00:08]} 6. h4 {[%emt 0:01:51]} h6 {[%emt 0:00:10]} 7. Nf3 {[%emt 0:00:11]} Nd7 {[%emt 0:05:38]} 8. h5 {[%emt 0:00:55]} Bh7 {[%emt 0:00:08]} 9. Bd3 {[%emt 0:00:10]} Bxd3 {[%emt 0:00:09]} 10. Qxd3 {[%emt 0:00:05]} e6 {[%emt 0:00:24]} 11. Bd2 {[%emt 0:00:41]} Ngf6 {[%emt 0:00:46]} 12. O-O-O {[%emt 0:00:46]} Be7 {[%emt 0:01:02]} 13. Kb1 {[%emt 0:01:50]} c5 {[%emt 0:13:39]} 14. Ne4 {[%emt 0:03:33]} Qc7 {[%emt 0:09:54]} 15. Nxf6+ {[%emt 0:06:33]} Nxf6 {[%emt 0:04:55]} 16. dxc5 {[%emt 0:18:53]} Qxc5 {[%emt 0:02:39]} 17. Be3 {[%emt 0:04:59]} Qa5 {[%emt 0:08:15]} 18. Bd4 {[%emt 0:07:14]} O-O {[%emt 0:05:01]} 19. Ne5 {[%emt 0:02:40]} Rfd8 {[%emt 0:14:35]} 20. Qe2 {[%emt 0:00:23]} Rac8 {[%emt 0:11:51]} 21. Rhe1 {[%emt 0:04:00]} Bc5 {[%emt 0:03:08]} 22. Nc4 {[%emt 0:11:21]} Qc7 {[%emt 0:04:05]} 23. Bxf6 {[%emt 0:02:54]} gxf6 {[%emt 0:00:07]} 24. Nd2 {[%emt 0:02:06]} Be7 {[%emt 0:03:05]} 25. c3 {[%emt 0:01:58]} f5 {[%emt 0:01:11]} 26. g4 {[%emt 0:00:17]} Qf4 {[%emt 0:00:49]} 27. gxf5 {[%emt 0:05:01]} Qxf5+ {[%emt 0:00:06]} 28. Ne4 {[%emt 0:00:36]} Rd5 {[%emt 0:01:11]} 29. Ka1 {[%emt 0:01:12]} Rcd8 {[%emt 0:01:23]} 30. Rxd5 {[%emt 0:05:19]} Rxd5 {[%emt 0:00:15]} 31. c4 {[%emt 0:00:45]} Re5 {[%emt 0:02:37]} 32. Qd3 {[%emt 0:00:49]} Qxh5 {[%emt 0:02:53]} 33. f4 {[%emt 0:06:42]} Rf5 {[%emt 0:00:14]} 34. Rg1+ {[%emt 0:02:48]} Kf8 {[%emt 0:00:25]} 35. Qd7 {[%emt 0:01:14]} Bg5 {[%emt 0:00:35]} 36. fxg5 {[%emt 0:01:36]} hxg5 {[%emt 0:00:10]} 37. Ng3 {[%emt 0:00:49]} Qh2 {[%emt 0:00:11]} 38. Qd8+ {[%emt 0:00:05]} 1-0

[Event "POL-chT 2 Liga 2019"]
[Site "Poronin"]
[Date "2019.09.11"]
[Round "5.20"]
[White "Janaszak, Dawid"]
[Black "Lizak, Jakub"]
[Result "1-0"]
[ECO "D23"]
[WhiteElo "2351"]
[BlackElo "2236"]
[Annotator "NA"]
[PlyCount "75"]
[EventDate "2019.09.07"]
[EventType "team-tourn"]
[EventCountry "POL"]
[SourceTitle "playchess.com"]
[Source "ChessBase"]
[SourceQuality "1"]
[TimeControl "40/5400+30:1800+30"]

1. d4 {[%emt 0:00:00]} d5 {[%emt 0:00:00]} 2. Nf3 {[%emt 0:00:30]} Nf6 {[%emt 0:00:30]} 3. c4 {[%emt 0:00:30]} dxc4 {[%emt 0:00:04]} 4. Qa4+ {[%emt 0:01:34]} c6 {[%emt 0:04:06]} 5. Qxc4 {[%emt 0:00:09]} Be6 {[%emt 0:00:22]} 6. Qc2 {[%emt 0:03:09]} Bg4 {[%emt 0:02:29]} 7. Nbd2 {[%emt 0:02:13]} Qa5 {[%emt 0:02:24]} 8. Ne5 {[%emt 0:04:46]} Bh5 {[%emt 0:01:41]} 9. e3 {[%emt 0:03:09]} Nbd7 {[%emt 0:00:13]} 10. b4 {[%emt 0:06:53]} Qd5 {[%emt 0:01:58]} 11. Bb2 {[%emt 0:05:38]} Nxe5 {[%emt 0:04:58]} 12. dxe5 {[%emt 0:00:02]} Bg6 {[%emt 0:00:32]} 13. Qc3 {[%emt 0:02:52]} Nd7 {[%emt 0:01:23]} 14. e4 {[%emt 0:01:42]} Qe6 {[%emt 0:02:40]} 15. f4 {[%emt 0:02:33]} Nb6 {[%emt 0:01:48]} 16. f5 {[%emt 0:03:29]} Bxf5 {[%emt 0:00:09]} 17. exf5 {[%emt 0:00:02]} Qxf5 {[%emt 0:00:06]} 18. Qf3 {[%emt 0:09:52]} Qxf3 {[%emt 0:05:22]} 19. Nxf3 {[%emt 0:00:24]} e6 {[%emt 0:01:31]} 20. b5 {[%emt 0:01:11]} Bb4+ {[%emt 0:02:50]} 21. Kf2 {[%emt 0:01:03]} c5 {[%emt 0:01:24]} 22. a4 {[%emt 0:05:04]} Ba5 {[%emt 0:01:30]} 23. Be2 {[%emt 0:04:38]} Rc8 {[%emt 0:02:47]} 24. Ng5 {[%emt 0:04:39]} O-O {[%emt 0:01:30]} 25. Ne4 {[%emt 0:04:04]} c4 {[%emt 0:01:22]} 26. Rhc1 {[%emt 0:02:44]} Rfd8 {[%emt 0:02:32]} 27. Rc2 {[%emt 0:03:54]} Rd7 {[%emt 0:03:56]} 28. Bc3 {[%emt 0:05:35]} Bxc3 {[%emt 0:00:20]} 29. Rxc3 {[%emt 0:00:13]} Rd4 {[%emt 0:02:24]} 30. Nd6 {[%emt 0:01:50]} Rc5 {[%emt 0:01:59]} 31. a5 {[%emt 0:07:26]} Nd7 {[%emt 0:01:31]} 32. Rxc4 {[%emt 0:02:38]} Rdxc4 {[%emt 0:02:43]} 33. Nxc4 {[%emt 0:01:20]} g6 {[%emt 0:02:19]} 34. Rd1 {[%emt 0:02:56]} Nf8 {[%emt 0:00:34]} 35. Nd6 {[%emt 0:04:53]} Rc7 {[%emt 0:00:33]} 36. Ne8 {[%emt 0:00:32]} Rc5 {[%emt 0:01:58]} 37. Nf6+ {[%emt 0:00:21]} Kg7 {[%emt 0:00:11]} 38. Nd7 {[%emt 0:00:57]} 1-0